[Event "17th Aeroflot Open-A 2019"]
[Site "Moscow"]
[Date "2019.02.23"]
[Round "5.24"]
[White "Moroni, Luca Jr"]
[Black "Anton Guijarro, David"]
[Result "0-1"]
[ECO "E54"]
[WhiteElo "2567"]
[BlackElo "2642"]
[Annotator "ChessBase"]
[PlyCount "78"]
[EventDate "2019.02.19"]
[EventCountry "RUS"]
[SourceTitle "playchess.com"]
[Source "ChessBase"]
[SourceQuality "1"]
[TimeControl "40/5400+30:1800+30"]

1. d4 {[%emt 0:00:00]} Nf6 {[%emt 0:00:00]} 2. c4 {[%emt 0:00:00]} e6 {[%emt 0:00:18]} 3. Nc3 {[%emt 0:00:00]} Bb4 {[%emt 0:00:38]} 4. e3 {[%emt 0:00:16]} O-O {[%emt 0:03:19]} 5. Bd3 {[%emt 0:00:09]} d5 {[%emt 0:02:10]} 6. Nf3 {[%emt 0:00:19]} dxc4 {[%emt 0:03:27]} 7. Bxc4 {[%emt 0:00:16]} c5 {[%emt 0:00:06]} 8. O-O {[%emt 0:00:20]} Nc6 {[%emt 0:01:33]} 9. a3 {[%emt 0:02:07]} Ba5 {[%emt 0:00:20]} 10. Qd3 {[%emt 0:05:10]} cxd4 {[%emt 0:13:21]} 11. exd4 {[%emt 0:01:02]} h6 {[%emt 0:02:18]} 12. Bf4 {[%emt 0:08:31]} Bxc3 {[%emt 0:11:29]} 13. bxc3 {[%emt 0:01:51]} b6 {[%emt 0:00:13]} 14. Ba2 {[%emt 0:05:00]} Bb7 {[%emt 0:00:34]} 15. Rfe1 {[%emt 0:02:37]} Rc8 {[%emt 0:00:42]} 16. Rac1 {[%emt 0:04:38]} Re8 {[%emt 0:04:17]} 17. h3 {[%emt 0:10:28]} a6 {[%emt 0:13:31]} 18. a4 {[%emt 0:06:35]} Nd5 {[%emt 0:05:39]} 19. Bd2 {[%emt 0:03:21]} Qd6 {[%emt 0:08:43]} 20. Bb1 {[%emt 0:04:53]} Nf6 {[%emt 0:01:03]} 21. Re3 {[%emt 0:10:45]} Ne7 {[%emt 0:02:21]} 22. Ne5 {[%emt 0:03:18]} Nf5 {[%emt 0:01:59]} 23. Re2 {[%emt 0:02:46]} Qd5 {[%emt 0:02:21]} 24. f3 {[%emt 0:01:06]} b5 {[%emt 0:04:59]} 25. axb5 {[%emt 0:01:06]} axb5 {[%emt 0:00:09]} 26. g4 {[%emt 0:02:16]} Ne7 {[%emt 0:07:49]} 27. h4 {[%emt 0:02:57]} Kf8 {[%emt 0:00:26]} 28. Rf1 {[%emt 0:03:41]} Nc6 {[%emt 0:03:04]} 29. Nxf7 {[%emt 0:06:41]} Kxf7 {[%emt 0:00:08]} 30. Qg6+ {[%emt 0:00:07]} Kg8 {[%emt 0:02:17]} 31. g5 {[%emt 0:03:49]} Ne7 {[%emt 0:01:18]} 32. Qc2 {[%emt 0:00:47]} Nf5 {[%emt 0:01:21]} 33. gxf6 {[%emt 0:01:10]} gxf6 {[%emt 0:00:17]} 34. Ba2 {[%emt 0:00:28]} Rc4 {[%emt 0:01:27]} 35. Bxc4 {[%emt 0:01:06]} Qxc4 {[%emt 0:00:34]} 36. Rg2+ {[%emt 0:03:20]} Kh7 {[%emt 0:01:58]} 37. h5 {[%emt 0:00:53]} Ra8 {[%emt 0:00:16]} 38. Bf4 {[%emt 0:01:18]} Bd5 {[%emt 0:01:22]} 39. Kh2 {[%emt 0:01:22]} Qxf1 {[%emt 0:00:23]} 0-1

[Event "17th Aeroflot Open-A 2019"]
[Site "Moscow"]
[Date "2019.02.23"]
[Round "5.25"]
[White "Sychev, Klementy"]
[Black "Iturrizaga Bonelli, Eduardo"]
[Result "1-0"]
[ECO "B13"]
[WhiteElo "2545"]
[BlackElo "2640"]
[Annotator "RC"]
[PlyCount "45"]
[EventDate "2019.02.19"]
[EventCountry "RUS"]
[SourceTitle "playchess.com"]
[Source "ChessBase"]
[SourceQuality "1"]
[TimeControl "40/5400+30:1800+30"]

1. e4 {[%emt 0:00:00]} c6 {[%emt 0:10:36]} 2. d4 {[%emt 0:00:00]} d5 {[%emt 0:00:15]} 3. exd5 {[%emt 0:05:17]} cxd5 {[%emt 0:00:09]} 4. Bd3 {[%emt 0:00:03]} Nc6 {[%emt 0:00:42]} 5. c3 {[%emt 0:00:06]} g6 {[%emt 0:00:36]} 6. Bf4 {[%emt 0:09:55]} Bg7 {[%emt 0:00:18]} 7. Nf3 {[%emt 0:00:24]} Nh6 {[%emt 0:03:08]} 8. Qd2 {[%emt 0:05:46]} Nf5 {[%emt 0:00:18]} 9. O-O {[%emt 0:00:12]} O-O {[%emt 0:00:39]} 10. Re1 {[%emt 0:03:26]} Re8 {[%emt 0:00:19]} 11. Na3 {[%emt 0:00:22]} a6 {[%emt 0:03:00]} 12. Nc2 {[%emt 0:08:24]} Nd6 {[%emt 0:04:46]} 13. Ne3 {[%emt 0:02:19]} e6 {[%emt 0:01:43]} 14. Nxd5 {[%emt 0:08:14]} exd5 {[%emt 0:04:57]} 15. Bxd6 {[%emt 0:00:04]} Rxe1+ {[%emt 0:06:03]} 16. Rxe1 {[%emt 0:00:16]} Bxd4 {[%emt 0:01:47]} 17. Nxd4 {[%emt 0:06:38]} Qxd6 {[%emt 0:00:16]} 18. Re8+ {[%emt 0:00:11]} Kg7 {[%emt 0:00:05]} 19. Qe3 {[%emt 0:06:17]} Nd8 {[%emt 0:03:07]} 20. Qg5 {[%emt 0:05:22]} Be6 {[%emt 0:05:36]} 21. Bxg6 {[%emt 0:10:28]} h6 {[%emt 0:03:03]} 22. Qe3 {[%emt 0:10:27]} Kxg6 {[%emt 0:02:42]} 23. Rh8 {[%emt 0:00:08]} 1-0

[Event "17th Aeroflot Open-A 2019"]
[Site "Moscow"]
[Date "2019.02.23"]
[Round "5.26"]
[White "Tsydypov, Zhamsaran"]
[Black "Alekseenko, Kirill"]
[Result "1/2-1/2"]
[ECO "C45"]
[WhiteElo "2547"]
[BlackElo "2634"]
[Annotator "ChessBase"]
[PlyCount "92"]
[EventDate "2019.02.19"]
[EventCountry "RUS"]
[SourceTitle "playchess.com"]
[Source "ChessBase"]
[SourceQuality "1"]
[TimeControl "40/5400+30:1800+30"]

1. e4 {[%emt 0:08:59]} e5 {[%emt 0:00:00]} 2. Nf3 {[%emt 0:00:54]} Nc6 {[%emt 0:00:09]} 3. d4 {[%emt 0:00:17]} exd4 {[%emt 0:00:36]} 4. Nxd4 {[%emt 0:00:15]} Bc5 {[%emt 0:01:02]} 5. Nb3 {[%emt 0:00:49]} Bb6 {[%emt 0:01:12]} 6. Nc3 {[%emt 0:00:20]} d6 {[%emt 0:01:11]} 7. Qe2 {[%emt 0:01:55]} Be6 {[%emt 0:01:56]} 8. Be3 {[%emt 0:00:41]} Nf6 {[%emt 0:00:50]} 9. O-O-O {[%emt 0:01:45]} O-O {[%emt 0:00:25]} 10. f3 {[%emt 0:00:45]} Bxe3+ {[%emt 0:03:09]} 11. Qxe3 {[%emt 0:01:15]} a6 {[%emt 0:00:05]} 12. g4 {[%emt 0:01:54]} b5 {[%emt 0:02:45]} 13. g5 {[%emt 0:02:47]} Nd7 {[%emt 0:00:38]} 14. f4 {[%emt 0:00:37]} Nb6 {[%emt 0:11:57]} 15. Nd4 {[%emt 0:11:11]} Nxd4 {[%emt 0:17:14]} 16. Qxd4 {[%emt 0:00:14]} Re8 {[%emt 0:01:26]} 17. Rg1 {[%emt 0:07:47]} Qe7 {[%emt 0:05:10]} 18. f5 {[%emt 0:10:29]} Bd7 {[%emt 0:00:40]} 19. f6 {[%emt 0:10:59]} Qe5 {[%emt 0:00:27]} 20. fxg7 {[%emt 0:00:21]} Bc6 {[%emt 0:03:56]} 21. h4 {[%emt 0:07:17]} Kxg7 {[%emt 0:08:45]} 22. Bg2 {[%emt 0:03:34]} Qxd4 {[%emt 0:10:54]} 23. Rxd4 {[%emt 0:00:03]} f6 {[%emt 0:03:17]} 24. gxf6+ {[%emt 0:07:29]} Kxf6 {[%emt 0:02:51]} 25. Rdd1 {[%emt 0:02:02]} Ke5 {[%emt 0:07:46]} 26. Nd5 {[%emt 0:02:36]} Bxd5 {[%emt 0:00:04]} 27. exd5 {[%emt 0:00:05]} Nc4 {[%emt 0:00:31]} 28. Bh3 {[%emt 0:03:06]} Rg8 {[%emt 0:07:02]} 29. Rge1+ {[%emt 0:02:07]} Kf4 {[%emt 0:00:06]} 30. Rd4+ {[%emt 0:00:52]} Kg3 {[%emt 0:01:45]} 31. Be6 {[%emt 0:00:30]} Rgf8 {[%emt 0:00:34]} 32. b3 {[%emt 0:02:19]} Kf2 {[%emt 0:02:09]} 33. Rde4 {[%emt 0:01:33]} Ne5 {[%emt 0:00:22]} 34. R4e2+ {[%emt 0:00:47]} Kg3 {[%emt 0:03:21]} 35. Rg1+ {[%emt 0:00:42]} Kf3 {[%emt 0:00:59]} 36. Kd2 {[%emt 0:00:43]} h5 {[%emt 0:00:11]} 37. Rg5 {[%emt 0:06:01]} Rf4 {[%emt 0:00:06]} 38. Rxh5 {[%emt 0:00:11]} Raf8 {[%emt 0:01:18]} 39. Re3+ {[%emt 0:00:48]} Kf2 {[%emt 0:00:56]} 40. Rc3 {[%emt 0:00:00]} Rd4+ {[%emt 0:00:00]} 41. Kc1 {[%emt 0:01:17]} b4 {[%emt 0:08:31]} 42. Rxc7 {[%emt 0:01:55]} Ke3 {[%emt 0:00:14]} 43. Rf5 {[%emt 0:03:16]} Rxf5 {[%emt 0:00:17]} 44. Bxf5 {[%emt 0:00:11]} Rxh4 {[%emt 0:00:17]} 45. Ra7 {[%emt 0:05:39]} Rh5 {[%emt 0:00:46]} 46. Bc8 {[%emt 0:04:41]} Rh1+ {[%emt 0:00:08]} 1/2-1/2

[Event "17th Aeroflot Open-A 2019"]
[Site "Moscow"]
[Date "2019.02.23"]
[Round "5.30"]
[White "Puranik, Abhimanyu"]
[Black "Van Foreest, Jorden"]
[Result "1/2-1/2"]
[ECO "A04"]
[WhiteElo "2538"]
[BlackElo "2618"]
[Annotator "ChessBase"]
[PlyCount "37"]
[EventDate "2019.02.19"]
[EventCountry "RUS"]
[SourceTitle "playchess.com"]
[Source "ChessBase"]
[SourceQuality "1"]
[TimeControl "40/5400+30:1800+30"]

1. Nf3 {[%emt 0:00:00]} c5 {[%emt 0:01:42]} 2. g3 {[%emt 0:00:00]} Nc6 {[%emt 0:01:03]} 3. Bg2 {[%emt 0:00:08]} d5 {[%emt 0:01:29]} 4. d4 {[%emt 0:00:38]} Nf6 {[%emt 0:01:48]} 5. O-O {[%emt 0:00:12]} e6 {[%emt 0:01:50]} 6. c4 {[%emt 0:00:24]} dxc4 {[%emt 0:00:11]} 7. dxc5 {[%emt 0:00:44]} Qxd1 {[%emt 0:00:19]} 8. Rxd1 {[%emt 0:00:04]} Bxc5 {[%emt 0:00:06]} 9. Nbd2 {[%emt 0:00:15]} c3 {[%emt 0:00:06]} 10. bxc3 {[%emt 0:00:04]} O-O {[%emt 0:00:07]} 11. Nb3 {[%emt 0:00:27]} Be7 {[%emt 0:00:06]} 12. c4 {[%emt 0:00:51]} Bd7 {[%emt 0:00:43]} 13. Bb2 {[%emt 0:00:54]} Rfd8 {[%emt 0:00:18]} 14. Nfd4 {[%emt 0:00:54]} Rac8 {[%emt 0:00:06]} 15. Nb5 {[%emt 0:00:51]} b6 {[%emt 0:00:05]} 16. Nd6 {[%emt 0:04:13]} Bxd6 {[%emt 0:00:06]} 17. Rxd6 {[%emt 0:00:03]} Be8 {[%emt 0:00:08]} 18. Rxd8 {[%emt 0:06:39]} Nxd8 {[%emt 0:01:46]} 19. Rc1 {[%emt 0:06:11]} 1/2-1/2

[Event "17th Aeroflot Open-A 2019"]
[Site "Moscow"]
[Date "2019.02.23"]
[Round "5.34"]
[White "Maghsoodloo, Parham"]
[Black "Tahbaz, Arash"]
[Result "1-0"]
[ECO "D56"]
[WhiteElo "2666"]
[BlackElo "2484"]
[Annotator "ChessBase"]
[PlyCount "79"]
[EventDate "2019.02.19"]
[EventCountry "RUS"]
[SourceTitle "playchess.com"]
[Source "ChessBase"]
[SourceQuality "1"]
[TimeControl "40/5400+30:1800+30"]

1. d4 {[%emt 0:01:08]} Nf6 {[%emt 0:07:19]} 2. c4 {[%emt 0:00:09]} e6 {[%emt 0:00:06]} 3. Nf3 {[%emt 0:00:04]} d5 {[%emt 0:01:04]} 4. Nc3 {[%emt 0:00:07]} Be7 {[%emt 0:00:04]} 5. Bg5 {[%emt 0:00:06]} h6 {[%emt 0:00:05]} 6. Bh4 {[%emt 0:00:06]} O-O {[%emt 0:00:05]} 7. Qc2 {[%emt 0:00:03]} Ne4 {[%emt 0:03:49]} 8. Bxe7 {[%emt 0:01:33]} Qxe7 {[%emt 0:00:02]} 9. e3 {[%emt 0:00:18]} Nxc3 10. Qxc3 {[%emt 0:02:14]} dxc4 {[%emt 0:23:11]} 11. Bxc4 {[%emt 0:00:19]} b6 {[%emt 0:00:04]} 12. O-O {[%emt 0:01:35]} Bb7 {[%emt 0:04:42]} 13. Be2 {[%emt 0:00:08]} Rc8 {[%emt 0:00:09]} 14. b4 {[%emt 0:00:18]} Nd7 {[%emt 0:01:44]} 15. Rfc1 {[%emt 0:04:32]} c5 {[%emt 0:01:28]} 16. dxc5 {[%emt 0:02:18]} bxc5 {[%emt 0:00:03]} 17. b5 {[%emt 0:00:04]} a6 {[%emt 0:11:10]} 18. a4 {[%emt 0:01:18]} axb5 {[%emt 0:00:08]} 19. Bxb5 {[%emt 0:00:31]} Bc6 {[%emt 0:05:33]} 20. Bxc6 {[%emt 0:02:50]} Rxc6 {[%emt 0:03:05]} 21. Nd2 {[%emt 0:01:39]} c4 {[%emt 0:07:34]} 22. a5 {[%emt 0:00:16]} Nf6 {[%emt 0:04:09]} 23. e4 {[%emt 0:04:18]} Rca6 {[%emt 0:04:14]} 24. Ra2 {[%emt 0:11:42]} Qc5 {[%emt 0:02:13]} 25. e5 {[%emt 0:06:27]} Nd5 {[%emt 0:02:08]} 26. Qxc4 {[%emt 0:00:30]} Qxc4 {[%emt 0:00:11]} 27. Nxc4 {[%emt 0:14:17]} Rc6 {[%emt 0:02:02]} 28. g3 {[%emt 0:00:26]} Rc5 {[%emt 0:07:21]} 29. Kg2 {[%emt 0:04:20]} Ra7 {[%emt 0:02:36]} 30. h4 {[%emt 0:01:58]} h5 {[%emt 0:00:55]} 31. Ra3 {[%emt 0:01:11]} g6 {[%emt 0:00:42]} 32. Raa1 {[%emt 0:02:31]} Nb4 {[%emt 0:02:34]} 33. Nd6 {[%emt 0:02:06]} Rxe5 {[%emt 0:01:05]} 34. Rc4 {[%emt 0:01:35]} Nd3 {[%emt 0:00:59]} 35. Rc8+ {[%emt 0:05:37]} Kh7 {[%emt 0:00:56]} 36. a6 {[%emt 0:00:13]} Rc5 {[%emt 0:02:44]} 37. Ra3 {[%emt 0:06:25]} Rd5 {[%emt 0:00:29]} 38. Nxf7 {[%emt 0:01:23]} Nb4 {[%emt 0:01:42]} 39. Ng5+ {[%emt 0:00:27]} Kg7 {[%emt 0:00:02]} 40. Rc7+ {[%emt 0:00:00]} 1-0

[Event "17th Aeroflot Open-A 2019"]
[Site "Moscow"]
[Date "2019.02.23"]
[Round "5.35"]
[White "Flom, Gabriel"]
[Black "Lalith Babu M R"]
[Result "1/2-1/2"]
[ECO "E48"]
[WhiteElo "2460"]
[BlackElo "2556"]
[Annotator "ChessBase"]
[PlyCount "108"]
[EventDate "2019.02.19"]
[EventCountry "RUS"]
[SourceTitle "playchess.com"]
[Source "ChessBase"]
[SourceQuality "1"]
[TimeControl "40/5400+30:1800+30"]

1. d4 {[%emt 0:09:59]} Nf6 {[%emt 0:00:00]} 2. c4 {[%emt 0:00:10]} e6 {[%emt 0:00:00]} 3. Nc3 {[%emt 0:00:11]} Bb4 {[%emt 0:00:07]} 4. e3 {[%emt 0:00:09]} O-O {[%emt 0:00:09]} 5. Bd3 {[%emt 0:00:13]} d5 {[%emt 0:00:10]} 6. cxd5 {[%emt 0:00:24]} exd5 {[%emt 0:01:46]} 7. Nge2 {[%emt 0:00:09]} Re8 {[%emt 0:03:17]} 8. O-O {[%emt 0:00:20]} b6 {[%emt 0:04:09]} 9. f3 {[%emt 0:00:17]} Bb7 {[%emt 0:00:32]} 10. g4 {[%emt 0:01:28]} c5 {[%emt 0:02:49]} 11. a3 {[%emt 0:18:18]} Bxc3 {[%emt 0:05:09]} 12. bxc3 {[%emt 0:00:13]} Ba6 {[%emt 0:02:24]} 13. Ng3 {[%emt 0:00:36]} Bxd3 {[%emt 0:01:28]} 14. Qxd3 {[%emt 0:00:08]} Nc6 {[%emt 0:00:31]} 15. Ra2 {[%emt 0:11:02]} Rc8 {[%emt 0:02:12]} 16. h4 {[%emt 0:00:16]} Qc7 {[%emt 0:11:45]} 17. Rg2 {[%emt 0:00:11]} Ne7 {[%emt 0:02:14]} 18. g5 {[%emt 0:04:48]} Nd7 {[%emt 0:00:28]} 19. h5 {[%emt 0:08:58]} cxd4 {[%emt 0:01:34]} 20. cxd4 {[%emt 0:00:08]} Qc4 {[%emt 0:02:20]} 21. Qb1 {[%emt 0:02:42]} Rc6 {[%emt 0:00:39]} 22. Bd2 {[%emt 0:03:29]} Qc2 {[%emt 0:05:13]} 23. Qxc2 {[%emt 0:02:45]} Rxc2 {[%emt 0:00:05]} 24. Bb4 {[%emt 0:00:07]} Rc6 {[%emt 0:06:37]} 25. Rff2 {[%emt 0:04:51]} g6 {[%emt 0:06:07]} 26. Rc2 {[%emt 0:05:35]} Rxc2 {[%emt 0:03:27]} 27. Rxc2 {[%emt 0:00:08]} Rc8 {[%emt 0:00:09]} 28. Rxc8+ {[%emt 0:17:47]} Nxc8 {[%emt 0:00:06]} 29. hxg6 {[%emt 0:00:13]} hxg6 {[%emt 0:00:15]} 30. Ne2 {[%emt 0:00:21]} a5 {[%emt 0:01:13]} 31. Bd2 {[%emt 0:00:09]} f6 {[%emt 0:00:54]} 32. Nc3 {[%emt 0:01:00]} Ne7 {[%emt 0:00:45]} 33. gxf6 {[%emt 0:03:38]} Nxf6 {[%emt 0:00:08]} 34. Be1 {[%emt 0:00:26]} g5 {[%emt 0:04:13]} 35. Bg3 {[%emt 0:03:16]} g4 {[%emt 0:00:35]} 36. Kf2 {[%emt 0:01:38]} gxf3 {[%emt 0:00:27]} 37. Kxf3 {[%emt 0:00:27]} Kf7 {[%emt 0:00:17]} 38. Bc7 {[%emt 0:00:37]} Nd7 {[%emt 0:00:29]} 39. Bd8 {[%emt 0:00:52]} Nc6 {[%emt 0:00:44]} 40. Bc7 {[%emt 0:00:00]} Ke6 {[%emt 0:00:00]} 41. Ke2 {[%emt 0:00:17]} Ne7 {[%emt 0:04:24]} 42. Kd3 {[%emt 0:02:14]} Kf5 {[%emt 0:07:40]} 43. Nb5 {[%emt 0:04:59]} Ke6 {[%emt 0:01:42]} 44. Bd8 {[%emt 0:07:03]} Nc8 {[%emt 0:04:03]} 45. Bc7 {[%emt 0:02:08]} Ne7 {[%emt 0:01:16]} 46. Na7 {[%emt 0:01:35]} Kf5 {[%emt 0:03:15]} 47. Ke2 {[%emt 0:00:54]} Ke6 {[%emt 0:00:09]} 48. Kf3 {[%emt 0:01:05]} Kf5 {[%emt 0:00:09]} 49. Bd8 {[%emt 0:00:54]} Ke6 {[%emt 0:00:19]} 50. Kf4 {[%emt 0:03:45]} Ng6+ {[%emt 0:02:32]} 51. Kf3 {[%emt 0:01:58]} Ne7 {[%emt 0:00:08]} 52. Nb5 {[%emt 0:01:12]} Nc8 {[%emt 0:02:44]} 53. Bh4 {[%emt 0:02:06]} Nf8 {[%emt 0:02:26]} 54. Bg3 {[%emt 0:02:27]} Kd7 {[%emt 0:01:12] Ke4} 1/2-1/2

[Event "17th Aeroflot Open-A 2019"]
[Site "Moscow"]
[Date "2019.02.23"]
[Round "5.37"]
[White "Harika, Dronavalli"]
[Black "Narayanan, Srinath"]
[Result "1/2-1/2"]
[ECO "A35"]
[WhiteElo "2471"]
[BlackElo "2572"]
[Annotator "ChessBase"]
[PlyCount "30"]
[EventDate "2019.02.19"]
[EventCountry "RUS"]
[SourceTitle "playchess.com"]
[Source "ChessBase"]
[SourceQuality "1"]
[TimeControl "40/5400+30:1800+30"]

1. Nf3 {[%emt 0:02:20]} c5 {[%emt 0:00:45]} 2. c4 {[%emt 0:00:17]} Nc6 {[%emt 0:00:05]} 3. Nc3 {[%emt 0:00:40]} Nf6 {[%emt 0:00:25]} 4. g3 {[%emt 0:00:54]} d5 {[%emt 0:01:37]} 5. cxd5 {[%emt 0:01:57]} Nxd5 {[%emt 0:00:07]} 6. Nxd5 Qxd5 {[%emt 0:00:10]} 7. Bg2 {[%emt 0:05:59]} g6 {[%emt 0:00:50]} 8. O-O {[%emt 0:01:25]} Bg7 {[%emt 0:00:06]} 9. d3 {[%emt 0:00:08]} O-O {[%emt 0:00:48]} 10. Be3 {[%emt 0:01:10]} Bd7 {[%emt 0:00:21]} 11. Nd4 {[%emt 0:01:37]} Qd6 {[%emt 0:00:13]} 12. Nxc6 {[%emt 0:00:20]} Bxc6 {[%emt 0:00:04]} 13. Bxc6 {[%emt 0:00:07]} Qxc6 {[%emt 0:00:04]} 14. Rc1 {[%emt 0:00:22]} Qa6 {[%emt 0:00:13]} 15. Rxc5 {[%emt 0:00:58]} b6 {[%emt 0:00:07]} 1/2-1/2

[Event "17th Aeroflot Open-A 2019"]
[Site "Moscow"]
[Date "2019.02.23"]
[Round "5.38"]
[White "Warmerdam, Max"]
[Black "Ghaem Maghami, Ehsan"]
[Result "1/2-1/2"]
[ECO "B13"]
[WhiteElo "2450"]
[BlackElo "2540"]
[Annotator "ChessBase"]
[PlyCount "59"]
[EventDate "2019.02.19"]
[EventCountry "RUS"]
[SourceTitle "playchess.com"]
[Source "ChessBase"]
[SourceQuality "1"]
[TimeControl "40/5400+30:1800+30"]

1. e4 {[%emt 0:00:20]} c6 {[%emt 0:13:15]} 2. d4 {[%emt 0:00:33]} d5 {[%emt 0:00:08]} 3. exd5 {[%emt 0:00:07]} cxd5 {[%emt 0:00:06]} 4. Bd3 {[%emt 0:00:04]} Nc6 {[%emt 0:00:22]} 5. c3 {[%emt 0:00:08]} Nf6 {[%emt 0:01:06]} 6. Bf4 {[%emt 0:00:07]} g6 {[%emt 0:04:28]} 7. Nf3 {[%emt 0:00:41]} Bg4 {[%emt 0:03:19]} 8. Nbd2 {[%emt 0:00:48]} Qc8 {[%emt 0:02:38]} 9. O-O {[%emt 0:05:16]} Bg7 {[%emt 0:00:12]} 10. Re1 {[%emt 0:01:58]} O-O {[%emt 0:00:10]} 11. h3 {[%emt 0:02:09]} Bf5 {[%emt 0:00:06]} 12. Bb5 {[%emt 0:07:31]} Re8 {[%emt 0:05:50]} 13. Nh4 {[%emt 0:03:02]} Bd7 {[%emt 0:00:48]} 14. Bd3 {[%emt 0:00:41]} Qd8 {[%emt 0:08:51]} 15. Bh2 {[%emt 0:07:26]} e6 {[%emt 0:03:44]} 16. Nhf3 {[%emt 0:00:55]} a6 {[%emt 0:11:53]} 17. a4 {[%emt 0:04:23]} Bc8 {[%emt 0:10:15]} 18. Nb3 {[%emt 0:31:17]} Nd7 {[%emt 0:03:44]} 19. a5 {[%emt 0:01:43]} b6 {[%emt 0:03:41]} 20. axb6 {[%emt 0:01:05]} Qxb6 {[%emt 0:01:17]} 21. Ra2 {[%emt 0:01:49]} Bb7 {[%emt 0:05:48]} 22. Bf1 {[%emt 0:04:24]} a5 {[%emt 0:05:08]} 23. Bf4 {[%emt 0:02:58]} Ba6 {[%emt 0:01:41]} 24. Bxa6 {[%emt 0:00:22]} Rxa6 {[%emt 0:02:37]} 25. Nbd2 {[%emt 0:00:29]} Qb7 {[%emt 0:03:12]} 26. Qa4 {[%emt 0:01:30]} Rb6 {[%emt 0:02:37]} 27. Rea1 {[%emt 0:03:18]} Rc8 {[%emt 0:00:17]} 28. Rb1 {[%emt 0:02:07]} Rb5 {[%emt 0:01:26]} 29. Qd1 {[%emt 0:01:38]} a4 {[%emt 0:01:04]} 30. Ne1 {[%emt 0:04:53]} 1/2-1/2

[Event "17th Aeroflot Open-A 2019"]
[Site "Moscow"]
[Date "2019.02.23"]
[Round "5.40"]
[White "Arjun Kalyan"]
[Black "Praggnanandhaa R"]
[Result "0-1"]
[ECO "B66"]
[WhiteElo "2444"]
[BlackElo "2532"]
[Annotator "ChessBase"]
[PlyCount "100"]
[EventDate "2019.02.19"]
[EventCountry "RUS"]
[SourceTitle "playchess.com"]
[Source "ChessBase"]
[SourceQuality "1"]
[TimeControl "40/5400+30:1800+30"]

1. e4 {[%emt 0:00:00]} c5 {[%emt 0:04:33]} 2. Nf3 {[%emt 0:00:00]} Nc6 {[%emt 0:00:22]} 3. d4 {[%emt 0:00:00]} cxd4 {[%emt 0:00:05]} 4. Nxd4 {[%emt 0:00:00]} Nf6 {[%emt 0:00:04]} 5. Nc3 {[%emt 0:00:00]} d6 {[%emt 0:00:02]} 6. Bg5 {[%emt 0:00:07]} e6 {[%emt 0:00:04]} 7. Qd2 {[%emt 0:00:17]} a6 {[%emt 0:00:05]} 8. O-O-O {[%emt 0:00:11]} Be7 {[%emt 0:00:04]} 9. f3 {[%emt 0:03:03]} Nxd4 {[%emt 0:00:06]} 10. Qxd4 {[%emt 0:00:04]} O-O {[%emt 0:00:08]} 11. h4 {[%emt 0:01:45]} b5 {[%emt 0:00:14]} 12. Qd2 {[%emt 0:00:47]} Bb7 {[%emt 0:00:53]} 13. Ne2 {[%emt 0:01:40]} Rc8 {[%emt 0:02:02]} 14. Nd4 {[%emt 0:02:42]} Nd7 {[%emt 0:03:06]} 15. Kb1 {[%emt 0:24:23]} Re8 {[%emt 0:04:28]} 16. Nb3 {[%emt 0:14:39]} d5 {[%emt 0:10:52]} 17. Na5 {[%emt 0:17:56]} Ba8 {[%emt 0:01:14]} 18. exd5 {[%emt 0:00:17]} Bxd5 {[%emt 0:01:18]} 19. c4 {[%emt 0:02:13]} bxc4 {[%emt 0:02:50]} 20. Bxc4 {[%emt 0:01:37]} Nf6 {[%emt 0:11:07]} 21. Bxd5 {[%emt 0:07:13]} Nxd5 {[%emt 0:02:01]} 22. Bxe7 {[%emt 0:01:21]} Rxe7 {[%emt 0:01:51]} 23. Rc1 {[%emt 0:01:27]} Rec7 {[%emt 0:01:02]} 24. Rxc7 {[%emt 0:01:39]} Rxc7 {[%emt 0:00:16]} 25. Nb3 {[%emt 0:00:51]} h6 {[%emt 0:03:05]} 26. Qd4 {[%emt 0:04:53]} Qd6 {[%emt 0:09:23]} 27. Rc1 {[%emt 0:01:36]} Rxc1+ {[%emt 0:01:52]} 28. Nxc1 {[%emt 0:00:02]} Qg3 {[%emt 0:06:54]} 29. Qc4 {[%emt 0:07:21]} Qxg2 {[%emt 0:07:33]} 30. Qc8+ {[%emt 0:01:33]} Kh7 {[%emt 0:00:08]} 31. Qxa6 {[%emt 0:00:04]} Qxf3 {[%emt 0:04:04]} 32. Qd3+ {[%emt 0:00:08]} Qxd3+ {[%emt 0:00:18]} 33. Nxd3 {[%emt 0:00:01]} g5 {[%emt 0:05:44]} 34. hxg5 {[%emt 0:00:10]} hxg5 {[%emt 0:00:11]} 35. Kc2 {[%emt 0:01:08]} Kg6 {[%emt 0:01:53]} 36. a4 {[%emt 0:02:03]} Kf5 {[%emt 0:03:08]} 37. Kd2 {[%emt 0:00:30]} Ke4 {[%emt 0:03:47]} 38. a5 {[%emt 0:01:48]} Nc7 {[%emt 0:01:45]} 39. Ke2 {[%emt 0:00:12]} Kd4 {[%emt 0:03:01]} 40. Ne1 {[%emt 0:00:00]} g4 {[%emt 0:00:00]} 41. Kf2 {[%emt 0:02:49]} Kc4 {[%emt 0:07:50]} 42. Kg3 {[%emt 0:00:40]} f5 {[%emt 0:00:18]} 43. Ng2 {[%emt 0:00:50]} Kb5 {[%emt 0:02:51]} 44. Kf4 {[%emt 0:00:07]} Kxa5 {[%emt 0:01:00]} 45. Ke5 {[%emt 0:00:02]} Kb6 {[%emt 0:05:00]} 46. Kd6 {[%emt 0:00:05]} Nd5 {[%emt 0:02:35]} 47. Kxe6 {[%emt 0:00:12]} f4 {[%emt 0:00:09]} 48. Kxd5 {[%emt 0:01:15]} f3 {[%emt 0:00:06]} 49. Ne3 {[%emt 0:00:49]} g3 {[%emt 0:00:08]} 50. Nc4+ {[%emt 0:00:39]} Kc7 {[%emt 0:00:27]} 0-1

[Event "17th Aeroflot Open-A 2019"]
[Site "Moscow"]
[Date "2019.02.24"]
[Round "6.37"]
[White "Prithu Gupta"]
[Black "Moroni, Luca Jr"]
[Result "1/2-1/2"]
[ECO "A06"]
[WhiteElo "2470"]
[BlackElo "2567"]
[Annotator "RC"]
[PlyCount "47"]
[EventDate "2019.02.19"]
[EventCountry "RUS"]
[SourceTitle "playchess.com"]
[Source "ChessBase"]
[SourceQuality "1"]
[TimeControl "40/5400+30:1800+30"]

1. Nf3 {[%emt 0:00:00]} d5 {[%emt 0:00:00]} 2. g3 {[%emt 0:00:00]} Nf6 {[%emt 0:00:00]} 3. Bg2 {[%emt 0:00:00]} e6 {[%emt 0:00:00]} 4. O-O {[%emt 0:00:00]} b5 {[%emt 0:00:51]} 5. d3 {[%emt 0:00:11]} Bb7 {[%emt 0:00:05]} 6. Nbd2 {[%emt 0:00:23]} c5 {[%emt 0:00:53]} 7. e4 {[%emt 0:00:40]} Nc6 {[%emt 0:00:41]} 8. Re1 {[%emt 0:13:10]} Be7 {[%emt 0:01:16]} 9. Qe2 {[%emt 0:00:58]} Qb6 {[%emt 0:04:42]} 10. a4 {[%emt 0:02:55]} b4 {[%emt 0:07:06]} 11. exd5 {[%emt 0:11:24]} Nxd5 {[%emt 0:04:03]} 12. a5 {[%emt 0:01:54]} Qa6 {[%emt 0:08:56]} 13. Nc4 {[%emt 0:09:42]} O-O {[%emt 0:03:39]} 14. Bd2 {[%emt 0:11:57]} Bf6 {[%emt 0:05:06]} 15. Rab1 {[%emt 0:07:16]} Rad8 {[%emt 0:04:26]} 16. Be3 {[%emt 0:10:44]} Qb5 {[%emt 0:04:09]} 17. Ra1 {[%emt 0:00:11]} h6 {[%emt 0:04:38]} 18. Nfd2 {[%emt 0:04:40]} Rd7 {[%emt 0:07:55]} 19. Nb3 {[%emt 0:05:32]} Be7 {[%emt 0:07:21]} 20. Bd2 {[%emt 0:04:33]} Rfd8 {[%emt 0:03:15]} 21. Qg4 {[%emt 0:03:20]} Nf6 {[%emt 0:03:49]} 22. Qe2 {[%emt 0:00:12]} Nd5 {[%emt 0:10:55]} 23. Qg4 {[%emt 0:03:04]} Nf6 {[%emt 0:02:15]} 24. Qe2 {[%emt 0:00:14]} 1/2-1/2